lending/lending_fUSD_20250516
["ID","MTS","AMOUNT","RATE_DAILY","PERIOD"]
[361247389,1747391445823,-4767.05951172,0.00012999,2]
[361247390,1747391445835,-13886.31433615,0.00012999,2]
[361247391,1747391445880,-282.82583797,0.00012999,2]
[361247392,1747391445891,-661.03883203,0.00012999,2]
[361247393,1747391445934,-617.92489734,0.00012999,2]
[361247394,1747391446101,-599.38775637,0.00012999,2]
[361247395,1747391446113,-4598.26842187,0.00012999,2]
[361247396,1747391446125,-2297.07506595,0.00012999,2]
[361247402,1747391958728,223.0,0.000272,120]
[361247403,1747391967460,-450.0,0.0001,2]
[361247404,1747392089587,160.08,0.00021945,30]
[361247406,1747392228941,150.0,0.00012456,7]
[361247451,1747392632070,-797.8,0.00010603,2]
[361247452,1747392632080,-250.0,0.00011301,2]
[361247453,1747392632094,-250.0,0.00011663,2]
[361247454,1747392632104,-500.0,0.00012,2]
[361247455,1747392632114,-255.78,0.00012,2]
[361247456,1747392632124,-265.06,0.00012331,2]
[361247457,1747392632134,-1000.0,0.0001239,2]
[361247458,1747392632144,-311.2,0.00012415,2]
[361247459,1747392632154,-1200.0,0.00012529,2]
[361247460,1747392632163,-300.0,0.00012529,2]
[361247461,1747392632173,-23900.0,0.0001253,2]
[361247462,1747392632183,-471.39,0.00012622,2]
[361247463,1747392632192,-250.0,0.00012689,2]
[361247464,1747392632202,-154.2,0.0001276,2]
[361247465,1747392632212,-703.95,0.000128,2]
[361247466,1747392632222,-255.78,0.000128,2]
[361247467,1747392632231,-697.55,0.00012801,2]
[361247468,1747392632240,-797.8,0.00012866,2]
[361247469,1747392632250,-942.79,0.00012876,2]
[361247470,1747392632260,-162.16,0.00012942,2]
[361247471,1747392632269,-500.0,0.00012999,2]
[361247472,1747392632278,-500.0,0.00012999,2]
[361247473,1747392632288,-500.0,0.00012999,2]
[361247474,1747392632298,-500.0,0.00012999,2]
[361247475,1747392632307,-601.88786426,0.00012999,2]
[361247476,1747392632316,-500.0,0.00012999,2]
[361247477,1747392632326,-500.0,0.00012999,2]
[361247478,1747392632335,-500.0,0.00012999,2]
[361247479,1747392632345,-500.0,0.00012999,2]
[361247480,1747392632354,-500.0,0.00012999,2]
[361247481,1747392632364,-500.0,0.00012999,2]
[361247482,1747392632373,-500.0,0.00012999,2]
[361247483,1747392632382,-500.0,0.00012999,2]
[361247484,1747392632391,-500.0,0.00012999,2]
[361247485,1747392632401,-500.0,0.00012999,2]
[361247486,1747392632410,-337.16943107,0.00012999,2]
[361247487,1747392632419,-500.0,0.00012999,2]
[361247488,1747392632429,-500.0,0.00012999,2]
[361247489,1747392632438,-500.0,0.00012999,2]
[361247491,1747392632448,-500.0,0.00012999,2]
[361247493,1747392632457,-500.0,0.00012999,2]
[361247494,1747392632466,-500.0,0.00012999,2]
[361247496,1747392632476,-500.0,0.00012999,2]
[361247498,1747392632485,-500.0,0.00012999,2]
[361247500,1747392632494,-500.0,0.00012999,2]
[361247502,1747392632503,-500.0,0.00012999,2]
[361247504,1747392632512,-500.0,0.00012999,2]
[361247505,1747392632521,-500.0,0.00012999,2]
[361247506,1747392632534,-500.0,0.00012999,2]
[361247507,1747392632543,-500.0,0.00012999,2]
[361247508,1747392632552,-500.0,0.00012999,2]
[361247509,1747392632561,-500.0,0.00012999,2]
[361247510,1747392632570,-500.0,0.00012999,2]
[361247511,1747392632579,-500.0,0.00012999,2]
[361247512,1747392632588,-500.0,0.00012999,2]
[361247513,1747392632597,-500.0,0.00012999,2]
[361247514,1747392632606,-222.25978602,0.00012999,2]
[361247515,1747392632615,-500.0,0.00012999,2]
[361247516,1747392632623,-500.0,0.00012999,2]
[361247517,1747392632632,-500.0,0.00012999,2]
[361247518,1747392632641,-500.0,0.00012999,2]
[361247519,1747392632650,-500.0,0.00012999,2]
[361247520,1747392632658,-500.0,0.00012999,2]
[361247521,1747392632667,-500.0,0.00012999,2]
[361247522,1747392632675,-500.0,0.00012999,2]
[361247523,1747392632684,-500.0,0.00012999,2]
[361247524,1747392632693,-500.0,0.00012999,2]
[361247525,1747392632701,-500.0,0.00012999,2]
[361247526,1747392632711,-500.0,0.00012999,2]
[361247527,1747392632719,-500.0,0.00012999,2]
[361247528,1747392632728,-500.0,0.00012999,2]
[361247529,1747392632737,-274.99509344,0.00012999,2]
[361247530,1747392632746,-500.0,0.00012999,2]
[361247531,1747392632755,-500.0,0.00012999,2]
[361247533,1747392632764,-500.0,0.00012999,2]
[361247535,1747392632773,-500.0,0.00012999,2]
[361247536,1747392632782,-500.0,0.00012999,2]
[361247537,1747392632792,-500.0,0.00012999,2]
[361247538,1747392632801,-500.0,0.00012999,2]
[361247539,1747392632810,-157.11879838,0.00012999,2]
[361247540,1747392632819,-3536.74212796,0.00012999,2]
[361247541,1747392632828,-1113.3981109,0.00012999,2]
[361247542,1747392632838,-72896.90569148,0.00013,2]
[361247543,1747392632847,-162.16,0.00013007,2]
[361247544,1747392632857,-250.0,0.000132,2]
[361247545,1747392632866,-162.74,0.00013272,2]
[361247546,1747392632875,-553.33,0.00013334,2]
[361247547,1747392632885,-164.15,0.00013388,2]
[361247548,1747392632894,-975.7213348,0.00013389,2]
[361247549,1747392632904,-41061.47137945,0.00013499,2]
[361247550,1747392632913,-864.1633307,0.00013599,2]
[361247551,1747392632923,-448.73,0.00013698,2]
[361247552,1747392632932,-499.45051003,0.00013698,2]
[361247553,1747392632941,-500.0,0.00013698,2]
[361247554,1747392632954,-445.77441207,0.00013698,2]
[361247555,1747392632963,-200.0,0.00013699,2]
[361247556,1747392632973,-236.21,0.00013699,2]
[361247557,1747392632982,-196.84,0.00013699,2]
[361247558,1747392632992,-164.04,0.00013699,2]
[361247559,1747392633002,-820.2,0.00013699,2]
[361247560,1747392633012,-10449.95,0.00013699,2]
[361247561,1747392633022,-1000.0,0.00013699,2]
[361247562,1747392633031,-500.0,0.00013699,2]
[361247563,1747392633042,-604.79877962,0.00013699,2]
[361247564,1747392633052,-500.0,0.00013699,2]
[361247565,1747392633061,-604.79877962,0.00013699,2]
[361247566,1747392633071,-500.0,0.00013699,2]
[361247567,1747392633080,-604.79877962,0.00013699,2]
[361247568,1747392633090,-500.0,0.00013699,2]
[361247569,1747392633099,-500.0,0.00013699,2]
[361247570,1747392633109,-604.79877962,0.00013699,2]
[361247571,1747392633119,-500.0,0.00013699,2]
[361247572,1747392633129,-604.79877962,0.00013699,2]
[361247573,1747392633138,-500.0,0.00013699,2]
[361247574,1747392633148,-604.79877962,0.00013699,2]
[361247575,1747392633158,-500.0,0.00013699,2]
[361247576,1747392633167,-604.79877962,0.00013699,2]
[361247577,1747392633176,-500.0,0.00013699,2]
[361247578,1747392633186,-604.79877962,0.00013699,2]
[361247579,1747392633195,-500.0,0.00013699,2]
[361247580,1747392633205,-604.79877962,0.00013699,2]
[361247581,1747392633215,-500.0,0.00013699,2]
[361247582,1747392633224,-604.79877962,0.00013699,2]
[361247583,1747392633233,-500.0,0.00013699,2]
[361247584,1747392633243,-604.79877962,0.00013699,2]
[361247585,1747392633252,-604.79877962,0.00013699,2]
[361247586,1747392633262,-500.0,0.00013699,2]
[361247587,1747392633271,-604.79877962,0.00013699,2]
[361247588,1747392633281,-500.0,0.00013699,2]
[361247589,1747392633290,-604.79877962,0.00013699,2]
[361247590,1747392633299,-500.0,0.00013699,2]
[361247591,1747392633309,-500.0,0.00013699,2]
[361247592,1747392633318,-604.79877962,0.00013699,2]
[361247593,1747392633327,-500.0,0.00013699,2]
[361247594,1747392633337,-604.79877962,0.00013699,2]
[361247595,1747392633346,-500.0,0.00013699,2]
[361247596,1747392633355,-604.79877962,0.00013699,2]
[361247597,1747392633365,-500.0,0.00013699,2]
[361247598,1747392633374,-604.79877962,0.00013699,2]
[361247599,1747392633384,-500.0,0.00013699,2]
[361247600,1747392633393,-604.79877962,0.00013699,2]
[361247601,1747392633402,-604.79877962,0.00013699,2]
[361247602,1747392633411,-500.0,0.00013699,2]
[361247603,1747392633420,-604.79877962,0.00013699,2]
[361247604,1747392633430,-500.0,0.00013699,2]
[361247605,1747392633439,-604.79877962,0.00013699,2]
[361247606,1747392633448,-500.0,0.00013699,2]
[361247607,1747392633457,-500.0,0.00013699,2]
[361247608,1747392633467,-604.79877962,0.00013699,2]
[361247609,1747392633476,-500.0,0.00013699,2]
[361247610,1747392633485,-604.79877962,0.00013699,2]
[361247611,1747392633494,-500.0,0.00013699,2]
[361247612,1747392633503,-604.79877962,0.00013699,2]
[361247613,1747392633512,-408.64098432,0.00013699,2]
[361247614,1747392633521,-604.79877962,0.00013699,2]
[361247615,1747392633531,-500.0,0.00013699,2]
[361247616,1747392633540,-604.79877962,0.00013699,2]
[361247617,1747392633552,-500.0,0.00013699,2]
[361247618,1747392633561,-500.0,0.00013699,2]
[361247619,1747392633573,-604.79877962,0.00013699,2]
[361247620,1747392633583,-500.0,0.00013699,2]
[361247621,1747392633592,-604.79877962,0.00013699,2]
[361247622,1747392633602,-500.0,0.00013699,2]
[361247623,1747392633611,-604.79877962,0.00013699,2]
[361247624,1747392633621,-500.0,0.00013699,2]
[361247625,1747392633630,-604.79877962,0.00013699,2]
[361247626,1747392633640,-500.0,0.00013699,2]
[361247627,1747392633649,-500.0,0.00013699,2]
[361247628,1747392633659,-604.79877962,0.00013699,2]
[361247629,1747392633669,-500.0,0.00013699,2]
[361247630,1747392633679,-604.79877962,0.00013699,2]
[361247631,1747392633688,-500.0,0.00013699,2]
[361247632,1747392633698,-604.79877962,0.00013699,2]
[361247633,1747392633708,-500.0,0.00013699,2]
[361247634,1747392633717,-604.79877962,0.00013699,2]
[361247635,1747392633727,-500.0,0.00013699,2]
[361247636,1747392633737,-604.79877962,0.00013699,2]
[361247637,1747392633747,-500.0,0.00013699,2]
[361247638,1747392633757,-604.79877962,0.00013699,2]
[361247639,1747392633766,-500.0,0.00013699,2]
[361247640,1747392633776,-604.79877962,0.00013699,2]
[361247641,1747392633786,-500.0,0.00013699,2]
[361247642,1747392633796,-604.79877962,0.00013699,2]
[361247643,1747392633806,-604.79877962,0.00013699,2]
[361247644,1747392633816,-604.79877962,0.00013699,2]
[361247645,1747392633825,-604.79877962,0.00013699,2]
[361247646,1747392633835,-604.79877962,0.00013699,2]
[361247647,1747392633845,-604.79877962,0.00013699,2]
[361247648,1747392633855,-604.79877962,0.00013699,2]
[361247649,1747392633866,-604.79877962,0.00013699,2]
[361247650,1747392633875,-604.79877962,0.00013699,2]
[361247651,1747392633885,-604.79877962,0.00013699,2]
[361247652,1747392633895,-604.79877962,0.00013699,2]
[361247653,1747392633906,-604.79877962,0.00013699,2]
[361247654,1747392633915,-604.79877962,0.00013699,2]
[361247655,1747392633925,-604.79877962,0.00013699,2]
[361247656,1747392633935,-604.79877962,0.00013699,2]
[361247657,1747392633947,-604.79877962,0.00013699,2]
[361247658,1747392633958,-604.79877962,0.00013699,2]
[361247659,1747392633969,-604.79877962,0.00013699,2]
[361247660,1747392633982,-500.0,0.00013699,2]
[361247661,1747392633993,-200.0,0.00013699,2]
[361247662,1747392634002,-2161.06390104,0.00013699,2]
[361247663,1747392634012,-500.0,0.00013699,2]
[361247664,1747392634023,-2161.06390104,0.00013699,2]
[361247665,1747392634033,-2161.06390104,0.00013699,2]
[361247666,1747392634043,-500.0,0.00013699,2]
[361247667,1747392634053,-2161.06390104,0.00013699,2]
[361247668,1747392634063,-500.0,0.00013699,2]
[361247669,1747392634072,-2161.06390104,0.00013699,2]
[361247670,1747392634083,-2161.06390104,0.00013699,2]
[361247671,1747392634093,-500.0,0.00013699,2]
[361247672,1747392634103,-2161.06390104,0.00013699,2]
[361247673,1747392634114,-2161.06390104,0.00013699,2]
[361247674,1747392634124,-2161.06390104,0.00013699,2]
[361247675,1747392634134,-2161.06390104,0.00013699,2]
[361247676,1747392634144,-2161.06390104,0.00013699,2]
[361247677,1747392634154,-2161.06390104,0.00013699,2]
[361247678,1747392634164,-2161.06390104,0.00013699,2]
[361247679,1747392634174,-2161.06390104,0.00013699,2]
[361247680,1747392634184,-2161.06390104,0.00013699,2]
[361247681,1747392634194,-2161.06390104,0.00013699,2]
[361247682,1747392634203,-2161.06390104,0.00013699,2]
[361247683,1747392634213,-2161.06390104,0.00013699,2]
[361247684,1747392634222,-2161.06390104,0.00013699,2]
[361247685,1747392634232,-2161.06390104,0.00013699,2]
[361247686,1747392634241,-2161.06390104,0.00013699,2]
[361247687,1747392634251,-2161.06390104,0.00013699,2]
[361247688,1747392634261,-2161.06390104,0.00013699,2]
[361247689,1747392634271,-2161.06390104,0.00013699,2]
[361247690,1747392634281,-2161.06390104,0.00013699,2]
[361247691,1747392634291,-2161.06390104,0.00013699,2]
[361247692,1747392634301,-2161.06390104,0.00013699,2]
[361247693,1747392634311,-2161.06390104,0.00013699,2]
[361247694,1747392634320,-2161.06390104,0.00013699,2]
[361247695,1747392634330,-2161.06390109,0.00013699,2]
[361247696,1747392634340,-2161.06390108,0.00013699,2]
[361247697,1747392634349,-420.0,0.00013747,2]
[361247698,1747392634359,-1680.0,0.00013782,2]
[361247699,1747392634369,-41061.47137939,0.00013875,2]
[361247700,1747392634379,-1000.0,0.00013939,2]
[361247701,1747392634389,-550.0,0.00014,2]
[361247702,1747392634398,-932.0,0.00014031,2]
[361247703,1747392634409,-1080.884,0.00014031,2]
[361247704,1747392634418,-41061.47137939,0.00014252,2]
[361247705,1747392634428,-255.78,0.000143,2]
[361247706,1747392634437,-234.08506863,0.0001454,2]
[361247707,1747392634447,-41061.47137939,0.00014628,2]
[361247708,1747392634457,-151.0,0.00014711,2]
[361247709,1747392634466,-151.0,0.00014716,2]
[361247710,1747392634475,-151.0,0.00014718,2]
[361247711,1747392634485,-151.0,0.0001472,2]
[361247712,1747392634495,-1000.0,0.00014764,2]
[361247713,1747392634505,-151.0,0.00014764,2]
[361247714,1747392634515,-207.4,0.00014764,2]
[361247715,1747392634524,-668.65185757,0.00014764,2]
[361247716,1747392634534,-326.32862186,0.00014794,4]
[361247717,1747392634545,-210.0,0.00014999,7]
[361247718,1747392634555,-200.0,0.00014999,7]
[361247719,1747392634565,-210.0,0.00014999,7]
[361247720,1747392634575,-200.0,0.00014999,7]
[361247721,1747392634584,-210.0,0.00014999,7]
[361247722,1747392634594,-200.0,0.00014999,7]
[361247723,1747392634603,-210.0,0.00014999,7]
[361247724,1747392634613,-200.0,0.00014999,7]
[361247725,1747392634623,-195.46170594,0.00014999,7]
[361247726,1747392634633,-186.15400566,0.00014999,7]
[361247727,1747392634642,-234.08506856,0.00015003,2]
[361247728,1747392634652,-41061.47137939,0.00015004,2]
[361247729,1747392634662,-448.73,0.00015068,2]
[361247730,1747392634673,-283.15,0.00015068,2]
[361247731,1747392634682,-587.0,0.00015083,2]
[361247732,1747392634692,-797.8,0.0001513,2]
[361247733,1747392634702,-2351.0,0.0001516,2]
[361247734,1747392634711,-208.03,0.00015246,2]
[361247735,1747392634721,-1037.0,0.00015312,2]
[361247736,1747392634731,-41061.47137939,0.00015381,2]
[361247737,1747392634741,-255.78,0.000154,2]
[361247738,1747392634751,-255.78,0.000154,2]
[361247739,1747392634760,-234.08506856,0.00015465,2]
[361247740,1747392634771,-162.74,0.00015484,2]
[361247741,1747392634781,-1000.0,0.00015487,2]
[361247742,1747392634791,-2251.666,0.000155,2]
[361247743,1747392634807,-165.213,0.000155,2]
[361247744,1747392634817,-1800.0,0.000156,5]
[361247745,1747392634827,-3600.0,0.000157,5]
[361247746,1747392634837,-9495.82149263,0.00015706,2]
[361247747,1747392634847,-41061.47137939,0.00015757,2]
[361247748,1747392634857,-1156.0,0.000158,3]
[361247749,1747392634867,-1000.0,0.000158,2]
[361247750,1747392635137,-1000.0,0.000158,2]
[361247751,1747392635147,-1000.0,0.000158,2]
[361247752,1747392635157,-1000.0,0.000158,3]
[361247753,1747392635167,-5400.0,0.000158,5]
[361247754,1747392635177,-1075.369,0.0001586,2]
[361247755,1747392635186,-150.0,0.0001589,2]
[361247756,1747392635196,-1211.0,0.000159,3]
[361247757,1747392635205,-1211.0,0.000159,3]
[361247758,1747392635215,-1211.0,0.000159,3]
[361247759,1747392635225,-1211.0,0.000159,3]
[361247760,1747392635234,-7200.0,0.000159,5]
[361247761,1747392635244,-234.08506856,0.00015928,2]
[361247762,1747392635253,-154.2,0.0001595,2]
[361247763,1747392635262,-167.43,0.0001597,2]
[361247764,1747392635272,-9879.15950306,0.00016,2]
[361247765,1747392635281,-18168.4,0.00016,2]
[361247766,1747392635291,-600.0,0.00016,2]
[361247767,1747392635306,-1000.0,0.00016,4]
[361247768,1747392635316,-1000.0,0.00016,4]
[361247769,1747392635325,-1000.0,0.00016,4]
[361247770,1747392635334,-1000.0,0.00016,4]
[361247771,1747392635344,-1000.0,0.00016,4]
[361247772,1747392635354,-1000.0,0.00016,4]
[361247773,1747392635363,-1211.0,0.00016,4]
[361247774,1747392635373,-1050.0,0.00016,4]
[361247775,1747392635383,-512.0,0.00016,4]
[361247776,1747392635392,-1000.0,0.00016,3]
[361247777,1747392635402,-151.0,0.00016072,2]
[361247778,1747392635411,-151.0,0.00016072,2]
[361247779,1747392635420,-151.0,0.00016072,2]
[361247780,1747392635429,-151.0,0.00016072,2]
[361247781,1747392635438,-151.0,0.00016072,2]
[361247782,1747392635447,-165.37179,0.00016072,2]
[361247783,1747392635457,-165.37179,0.00016072,2]
[361247784,1747392635466,-204.153958,0.00016072,2]
[361247785,1747392635475,-204.153958,0.00016072,2]
[361247786,1747392635484,-151.0,0.00016072,2]
[361247787,1747392635493,-407.584875,0.00016072,2]
[361247788,1747392635502,-407.584875,0.00016072,2]
[361247789,1747392635511,-421.265841,0.00016072,2]
[361247790,1747392635520,-421.265841,0.00016072,2]
[361247791,1747392635530,-151.0,0.00016133,2]
[361247792,1747392635539,-1557.801038,0.00016133,2]
[361247793,1747392635550,-1557.801038,0.00016133,2]
[361247794,1747392635560,-247.939874,0.00016133,2]
[361247795,1747392635569,-247.939874,0.00016133,2]
[361247796,1747392635579,-323.063001,0.00016133,2]
[361247797,1747392635588,-323.063001,0.00016133,2]
[361247798,1747392635597,-182.107339,0.00016133,2]
[361247799,1747392635607,-439.803241,0.00016133,2]
[361247800,1747392635617,-151.0,0.00016133,2]
[361247801,1747392635626,-439.803241,0.00016133,2]
[361247802,1747392635635,-296.737575,0.00016133,2]
[361247803,1747392635644,-2521.055022,0.00016133,2]
[361247804,1747392635654,-156.587,0.00016133,2]
[361247805,1747392635665,-215.0738,0.00016133,2]
[361247806,1747392635675,-41061.47137939,0.00016133,2]
[361247807,1747392635684,-151.0,0.00016156,2]
[361247808,1747392635693,-219.97885,0.00016156,2]
[361247809,1747392635703,-151.0,0.00016156,2]
[361247810,1747392635712,-151.0,0.00016156,2]
[361247811,1747392635722,-151.0,0.00016156,2]
[361247812,1747392635731,-151.0,0.00016156,2]
[361247813,1747392635741,-375.085757,0.00016156,2]
[361247814,1747392635751,-375.085757,0.00016156,2]
[361247815,1747392635760,-151.0,0.00016156,2]
[361247816,1747392635770,-151.0,0.00016174,2]
[361247817,1747392635779,-174.231048,0.00016174,2]
[361247818,1747392635789,-174.231048,0.00016174,2]
[361247819,1747392635800,-200.0,0.00016307,2]
[361247820,1747392635810,-151.475593,0.00016317,2]
[361247821,1747392635819,-452.87,0.00016319,2]
[361247822,1747392635828,-187.41871806,0.00016336,2]
[361247823,1747392635838,-151.0,0.00016337,2]
[361247824,1747392635848,-151.0,0.00016337,2]
[361247825,1747392635857,-151.0,0.00016337,2]
[361247826,1747392635867,-151.0,0.00016337,2]
[361247827,1747392635877,-151.0,0.00016337,2]
[361247828,1747392635887,-151.0,0.00016337,2]
[361247829,1747392635897,-151.0,0.00016337,2]
[361247830,1747392635907,-151.0,0.00016337,2]
[361247831,1747392635916,-151.0,0.00016337,2]
[361247832,1747392635926,-242.477985,0.00016337,2]
[361247833,1747392635935,-151.0,0.00016337,2]
[361247834,1747392635948,-151.0,0.00016337,2]
[361247835,1747392635958,-151.0,0.00016337,2]
[361247836,1747392635968,-151.0,0.00016337,2]
[361247837,1747392635978,-151.0,0.00016337,2]
[361247838,1747392635988,-151.0,0.00016337,2]
[361247839,1747392635998,-151.0,0.00016337,2]
[361247840,1747392636007,-151.0,0.00016337,2]
[361247841,1747392636017,-210.265362,0.00016337,2]
[361247842,1747392636028,-210.265362,0.00016337,2]
[361247843,1747392636038,-151.33104824,0.00016338,2]
[361247844,1747392636047,-199.19147723,0.00016338,2]
[361247845,1747392636057,-168.39943059,0.00016338,2]
[361247846,1747392636067,-187.41871806,0.00016338,2]
[361247847,1747392636077,-638.1615732,0.00016355,2]
[361247848,1747392636086,-409.06474923,0.00016383,2]
[361247849,1747392636095,-234.08506856,0.00016391,2]
[361247850,1747392636104,-1115.157653,0.00016408,2]
[361247851,1747392636113,-150.0,0.00016418,2]
[361247852,1747392636122,-750.17074998,0.00016418,2]
[361247853,1747392636132,-316.80591196,0.00016428,2]
[361247854,1747392636141,-259.855736,0.00016431,2]
[361247855,1747392636151,-151.0,0.00016431,2]
[361247856,1747392636160,-151.0,0.00016431,2]
[361247857,1747392636170,-176.296799,0.00016431,2]
[361247858,1747392636179,-151.0,0.00016431,2]
[361247859,1747392636189,-151.0,0.00016431,2]
[361247860,1747392636199,-151.0,0.00016432,2]
[361247861,1747392636209,-151.0,0.00016432,2]
[361247862,1747392636219,-174.231048,0.00016432,2]
[361247863,1747392636229,-174.231048,0.00016432,2]
[361247864,1747392636239,-151.0,0.00016432,2]
[361247865,1747392636248,-151.0,0.00016432,2]
[361247866,1747392636258,-151.0,0.00016432,2]
[361247867,1747392636269,-4637.3508123,0.00016436,2]
[361247868,1747392636279,-76076.1536907,0.00016436,2]
[361247869,1747392636288,-2131.4043575,0.00016436,2]
[361247870,1747392636298,-52164.6338474,0.00016436,2]
[361247871,1747392636307,-5341.9940442,0.00016436,2]
[361247872,1747392636317,-151.0,0.00016437,2]
[361247873,1747392636326,-151.0,0.00016437,2]
[361247874,1747392636336,-151.0,0.00016437,2]
[361247875,1747392636346,-151.0,0.00016437,2]
[361247876,1747392636355,-151.0,0.00016437,2]
[361247877,1747392636365,-78696.619865,0.00016437,2]
[361247878,1747392636374,-151.0,0.00016437,2]
[361247879,1747392636383,-247.741038,0.00016437,2]
[361247880,1747392636392,-1557.801038,0.00016437,2]
[361247881,1747392636402,-1557.801038,0.00016437,2]
[361247882,1747392636412,-247.939874,0.00016437,2]
[361247883,1747392636422,-247.939874,0.00016437,2]
[361247884,1747392636431,-323.063001,0.00016437,2]
[361247885,1747392636441,-323.063001,0.00016437,2]
[361247886,1747392636450,-439.803241,0.00016437,2]
[361247887,1747392636459,-151.0,0.00016437,2]
[361247888,1747392636469,-439.803241,0.00016437,2]
[361247889,1747392636478,-2521.055022,0.00016437,2]
[361247890,1747392636488,-169.73963847,0.00016437,2]
[361247891,1747392636497,-400.0,0.00016438,2]
[361247892,1747392636506,-400.0,0.00016438,2]
[361247893,1747392636516,-400.0,0.00016438,2]
[361247894,1747392636526,-400.0,0.00016438,2]
[361247895,1747392636535,-400.0,0.00016438,2]
[361247896,1747392636545,-400.0,0.00016438,2]
[361247897,1747392636555,-400.0,0.00016438,2]
[361247898,1747392636564,-400.0,0.00016438,2]
[361247899,1747392636574,-400.0,0.00016438,2]
[361247900,1747392636583,-400.0,0.00016438,2]
[361247901,1747392636592,-400.0,0.00016438,2]
[361247902,1747392636602,-400.0,0.00016438,2]
[361247903,1747392636611,-400.0,0.00016438,2]
[361247904,1747392636621,-400.56060413,0.00016438,2]
[361247905,1747392636630,-400.0,0.00016438,2]
[361247906,1747392636640,-451.72846295,0.00016438,2]
[361247907,1747392636650,-400.0,0.00016438,2]
[361247908,1747392636659,-400.0,0.00016438,2]
[361247909,1747392636669,-400.0,0.00016438,2]
[361247910,1747392636678,-400.0,0.00016438,2]
[361247911,1747392636687,-400.0,0.00016438,2]
[361247912,1747392636697,-289.94481315,0.00016438,2]
[361247913,1747392636707,-202.86085126,0.00016438,2]
[361247914,1747392636716,-400.0,0.00016438,2]
[361247915,1747392636727,-400.0,0.00016438,2]
[361247916,1747392636740,-508.62136216,0.00016438,2]
[361247917,1747392636752,-400.0,0.00016438,2]
[361247918,1747392636766,-151.0,0.00016438,2]
[361247919,1747392636776,-151.0,0.00016438,2]
[361247920,1747392636786,-151.0,0.00016438,2]
[361247921,1747392636798,-401.38968352,0.00016438,2]
[361247922,1747392636809,-400.0,0.00016438,2]
[361247923,1747392636819,-400.0,0.00016438,2]
[361247924,1747392636830,-400.0,0.00016438,2]
[361247925,1747392636839,-400.0,0.00016438,2]
[361247926,1747392636850,-400.0,0.00016438,2]
[361247927,1747392636859,-400.0,0.00016438,2]
[361247928,1747392636869,-400.61829199,0.00016438,2]
[361247929,1747392636878,-400.0,0.00016438,2]
[361247930,1747392636889,-400.0,0.00016438,2]
[361247931,1747392636899,-537.95347596,0.00016438,2]
[361247932,1747392636909,-304.1951354,0.00016438,2]
[361247933,1747392636919,-219.60455612,0.00016438,2]
[361247934,1747392636928,-478.74661388,0.00016438,2]
[361247935,1747392636938,-151.0,0.00016438,2]
[361247936,1747392636955,-174.231048,0.00016438,2]
[361247937,1747392636965,-400.0,0.00016438,2]
[361247938,1747392636975,-174.231048,0.00016438,2]
[361247939,1747392636985,-174.231048,0.00016438,2]
[361247940,1747392636995,-174.231048,0.00016438,2]
[361247941,1747392637005,-174.231048,0.00016438,2]
[361247942,1747392637014,-174.231048,0.00016438,2]
[361247943,1747392637024,-174.231048,0.00016438,2]
[361247944,1747392637034,-174.231048,0.00016438,2]
[361247945,1747392637046,-174.231048,0.00016438,2]
[361247946,1747392637055,-174.231048,0.00016438,2]
[361247947,1747392637065,-174.231048,0.00016438,2]